Cogmind - Beta 11 X10 @@@ ROGUE MODE // 2022.02.26 @ 14:56:01 Player: maxwell Result: Destroyed by G-47 Trooper with Particle Gun Performance ------------- Evolutions (2) 1000 Regions Visited (5) 1000 Robots Destroyed (62) 310 Value Destroyed (1925) 1925 Prototype IDs (3) 60 Alien Tech Used (0) 0 Bonus (365) 365 TOTAL SCORE: 4660 Bonus ------- Follower Combat Kills 379 Friendly Fire -14 Cogmind --------- Core Integrity 0/550 Matter 300/300 Energy 265/265 System Corruption 0% Temperature Cool (9) Movement Core (3650) Ox72 Location -8/Materials Parts ------- > --- POWER (1) -------- Improved Ion Engine > --- PROPULSION (2) --- Wheel > --- UTILITY (5) ------ Humpback Improved Sensor Array Improved Signal Interpreter Hacking Suite > --- WEAPON (3) ------- Medium Laser Advanced Beam Rifle EM Pulse Cannon > --- INVENTORY (35) --- Improved Ion Engine Heavy Ion Engine Wheel High-capacity Storage Unit Humpback High-capacity Matter Pod (200) Improved Sensor Array Improved Signal Interpreter Weapon Cycler Light Armor Plating Hacking Suite Improved Trap Extractor (0/6) Heavy EM Shotgun Heavy EM Shotgun Heavy EM Shotgun Heavy EM Shotgun Heavy EM Shotgun Heavy EM Shotgun Beam Rifle EM Pulse Cannon Gauss Cannon Grenade Launcher Heavy Flail Peak State ------------ > --- POWER ------------ Heavy Ion Engine > --- PROPULSION ------- Compact Wheel Compact Wheel > --- UTILITY ---------- Improved Heat Sink Humpback Weapon Cycler Medium Insulated Plating > --- WEAPON ----------- Heavy EM Shotgun Beam Rifle Beam Rifle > --- INVENTORY -------- Improved Ion Engine Improved Ion Engine Heavy Ion Engine Heat Sink High-capacity Storage Unit Humpback Humpback High-capacity Matter Pod Targeting Computer Hardened Medium Armor Plating Improved Trap Extractor Heavy EM Shotgun Heavy EM Shotgun Heavy EM Shotgun Heavy EM Shotgun Heavy EM Shotgun Heavy EM Shotgun Medium Laser Beam Rifle Beam Rifle Beam Rifle Beam Rifle Gauss Cannon Grenade Launcher Hammer [Rating: 32] Favorites ----------- Power Improved Ion Engine Engine Improved Ion Engine Propulsion Light Treads Treads Light Treads Wheel Compact Wheel Utility Weapon Shielding Device Improved Heat Sink Storage Humpback Processor Improved Signal Interpreter Hackware Hacking Suite Protection Weapon Shielding Weapon Beam Rifle Energy Gun Beam Rifle Energy Cannon EM Pulse Cannon Ballistic Gun Light Assault Rifle Launcher Grenade Launcher Impact Weapon Hammer Build | -11 -10 -10 -10 -9 -8 ------- Run | Scr Mat Min Exi Min Mat Slots Evolved 4 | . . . . . 4 Power . | . . . . . . Propulsion . | . . . . . . Utility 3 | . . . . . 3 Weapon 1 | . . . . . 1 Parts Attached 54 | 6 11 . 3 3 31 Power 5 | 1 2 . . . 2 Engine 5 | 1 2 . . . 2 Core . | . . . . . . Reactor . | . . . . . . Propulsion 8 | 2 . . 2 . 4 Treads 4 | 2 . . . . 2 Leg . | . . . . . . Wheel 4 | . . . 2 . 2 Hover . | . . . . . . Flight . | . . . . . . Utility 21 | 1 4 . 1 3 12 Device 6 | . . . . 1 5 Storage 6 | 1 2 . 1 . 2 Processor 2 | . . . . . 2 Hackware 1 | . . . . . 1 Protection 6 | . 2 . . 2 2 Artifact . | . . . . . . Weapon 20 | 2 5 . . . 13 Energy Gun 14 | 2 2 . . . 10 Energy Cannon 1 | . . . . . 1 Ballistic Gun 1 | . 1 . . . . Ballistic Cannon . | . . . . . . Launcher 2 | . 1 . . . 1 Special Weapon . | . . . . . . Impact Weapon 2 | . 1 . . . 1 Slashing Weapon . | . . . . . . Piercing Weapon . | . . . . . . Special Melee Weapon . | . . . . . . Unidentified Prototypes 3 | . . . . . 3 Corrupted Parts 1 | . . . . 1 . System Corruption 8 | . . . . 8 . Parts Lost 12 | . . . . . 12 Power 1 | . . . . . 1 Propulsion 3 | . . . . . 3 Utility 6 | . . . . . 6 Weapon 2 | . . . . . 2 Highest Loss Streak 6 | . . . . . 6 To Critical Strikes . | . . . . . . Average Slot Usage (%) 89 | . 97 100 100 100 78 Engine 11 | . 13 14 14 14 7 Treads 12 | . 28 28 24 . 1 Wheel 10 | . . . 3 28 13 Device 4 | . . . . . 10 Storage 11 | . 14 14 14 14 9 Processor 1 | . . . . . 2 Protection 10 | . 11 14 14 14 6 Energy Gun 21 | . 26 14 14 14 23 Launcher 5 | . . 14 14 14 1 Naked Turns . | . . . . . . Heaviest Build 227 | 13 34 34 54 60 227 Greatest Support 40 | 40 40 40 40 32 40 Greatest Overweight (x) 72 | 4 . . 1 1 72 Average Overweight (x) 2 | . . . . 1 8 Largest Inventory Capacity 35 | 8 15 15 20 20 35 Average Capacity 23 | 7 12 15 15 20 35 Most Carried 30 | 3 15 15 19 20 30 Average Carried 18 | 1 9 15 15 18 24 Final Capacity 35 | 8 15 15 20 20 35 Final Carried 24 | 3 15 15 18 20 24 Class Distribution -------------------- 55% | Mutant 27% | Hauler-Mutant 10% | Hauler-Tank 4% | Hauler-Skirmisher Dominant Class ---------------- Mutant | -10/Materials Mutant | -10/Mines Mutant | -10/Exiles Mutant | -9/Mines Hauler-Mutant | -8/Materials Resources | -11 -10 -10 -10 -9 -8 ----------- Run | Scr Mat Min Exi Min Mat Matter Collected 1188 | 260 17 39 . 378 494 Remotely . | . . . . . . Salvage Created 2310 | . 433 24 . 161 1692 Parts 118 | . 37 2 . 9 70 Haulers Intercepted 6 | . 2 . . . 4 Recyclers Shooed 3 | . 1 . . 1 1 Parts Field Recycled . | . . . . . . Retrieved Matter . | . . . . . . Parts Self-Destructed . | . . . . . . Prevented . | . . . . . . Kills | -11 -10 -10 -10 -9 -8 ------- Run | Scr Mat Min Exi Min Mat Combat Hostiles Destroyed 45 | . 11 2 . 8 24 Guns 31 | . 11 . . . 20 Cannons 1 | . . . . . 1 AOE 12 | . . 2 . 8 2 Classes Destroyed 9 | . 4 . . 2 3 Worker 3 | . . . . 1 2 Hauler 6 | . 2 . . . 4 Recycler 2 | . . . . . 2 Watcher 6 | . 2 . . . 4 Swarmer 9 | . 6 . . 3 . Grunt 30 | . 5 2 . 4 19 Brawler 1 | . . . . 1 . Sentry 3 | . . . . . 3 Hunter 2 | . . . . . 2 Best Kill Streak 7 | . 7 2 . 6 5 Combat Bots Only 7 | . 7 2 . 5 3 Max Kills in Single Turn 3 | . 1 2 . 3 1 Gunslinging . | . . . . . . Exploded 3 | . . 2 . 3 1 Melee . | . . . . . . Uniques/NPCs Destroyed . | . . . . . . Combat | -11 -10 -10 -10 -9 -8 -------- Run | Scr Mat Min Exi Min Mat Damage Taken 3098 | . 340 123 . 78 2557 Core 641 | . 66 19 . . 556 Absorbed by Shields . | . . . . . . Redirected to Shielding 48 | . 12 27 . 9 . Core Remaining (%) 83 | 100 . . . 66 . Volleys Fired 173 | . 37 3 . 7 126 Largest 3 | . 2 1 . 1 3 Hottest 173 | . 112 30 . 30 173 Shots Fired 343 | . 74 3 . 7 259 Gun 320 | . 74 . . . 246 Cannon 5 | . . . . . 5 Launcher 18 | . . 3 . 7 8 Special . | . . . . . . Kinetic . | . . . . . . Thermal 314 | . 74 . . . 240 Explosive 18 | . . 3 . 7 8 Electromagnetic 11 | . . . . . 11 Robot Hit Streak 15 | . 15 2 . 7 14 Robot Miss Streak 6 | . 4 . . 1 6 Penetration Max . | . . . . . . Secondary Targets 3 | . 1 . . . 2 Max Gunslinging Chain 1 | . 1 . . . 1 Shots Hit Robots 212 | . 44 1 . 5 162 Core Hits 127 | . 23 6 . 12 86 Critical Kills . | . . . . . . Critical Parts Destroyed . | . . . . . . Critical Strikes 17 | . 1 . . . 16 Burn 17 | . 1 . . . 16 Melee Attacks 8 | . 4 . . . 4 Impact 8 | . 4 . . . 4 Slashing . | . . . . . . Piercing . | . . . . . . Sneak Attacks . | . . . . . . Combat Hostiles . | . . . . . . Follow-up Attacks . | . . . . . . Damage Inflicted 4295 | . 534 156 . 527 3078 Guns 2986 | . 531 . . . 2455 Cannons 108 | . . . . . 108 Explosions 1166 | . . 152 . 527 487 Melee . | . . . . . . Ramming 35 | . 3 4 . . 28 Kinetic . | . . . . . . Thermal 2938 | . 531 29 . . 2378 Explosive 1137 | . . 123 . 527 487 Electromagnetic 185 | . . . . . 185 Impact . | . . . . . . Slashing . | . . . . . . Piercing . | . . . . . . Highest Corruption 8 | . . . . 8 . Average Corruption 8 | . . . . 8 . Corruption Purged . | . . . . . . Corruption Blocked . | . . . . . . Overload Shots . | . . . . . . Overflow Damage 21 | . . . . . 21 Projectiles 8 | . . . . . 8 Explosions 13 | . . . . . 13 Melee . | . . . . . . Knockbacks . | . . . . . . Impact . | . . . . . . Kinetic . | . . . . . . Secondary . | . . . . . . Self-Inflicted Damage 104 | . . 73 . 12 19 Shots 5 | . . 3 . 1 1 Rammed 6 | . 3 1 . . 2 Targets Rammed 6 | . 3 1 . . 2 Kicked . | . . . . . . Crushed . | . . . . . . Highest Temperature 664 | . 408 27 . 4 664 Average Temperature 178 | . 127 12 . 2 198 Received Heat Transfer 1320 | . 105 27 . 18 1170 Effects 39 | . 1 . . . 38 Shutdowns 8 | . 1 . . . 7 Energy Bleed 8 | . . . . . 8 Interference 13 | . . . . . 13 Matter Decay 2 | . . . . . 2 Short Circuit 4 | . . . . . 4 Damage (minor) 1 | . . . . . 1 Damage (major) 1 | . . . . . 1 Damage (core) 2 | . . . . . 2 Siege Activations . | . . . . . . Robots Corrupted . | . . . . . . Combat Hostiles . | . . . . . . Parts Fried . | . . . . . . Impact Corruptions . | . . . . . . Robots Melted 1 | . . . . . 1 Combat Hostiles 1 | . . . . . 1 Parts Melted 18 | . 1 . . . 17 Heat Transferred 8443 | . 1474 50 . . 6919 Parts Sabotaged . | . . . . . . Parts Stolen . | . . . . . . Parts Stripped . | . . . . . . Power Chain Reactions . | . . . . . . Missiles Intercepted . | . . . . . . Alert | -11 -10 -10 -10 -9 -8 ------- Run | Scr Mat Min Exi Min Mat Peak Influence 454 | . 309 140 . 140 454 Initial 35 | . . . . . 35 Average 153 | . 103 18 . 99 241 Maximum Alert Level 2 | . 1 . . . 2 Low Security (%) 61 | 100 89 100 . 100 22 Level 1 37 | . 10 . . . 75 Level 2 . | . . . . . 1 Level 3 . | . . . . . . Level 4 . | . . . . . . Level 5 . | . . . . . . High Security . | . . . . . . Max Security . | . . . . . . Squads Dispatched 10 | . 1 . . 1 8 Investigation 4 | . 1 . . 1 2 Extermination . | . . . . . . Reinforcement 4 | . . . . . 4 Assault 1 | . . . . . 1 Garrison 1 | . . . . . 1 Intercept . | . . . . . . Construction Impeded 3 | . . . . . 3 Haulers Reinforced . | . . . . . . Active Scanning Responses . | . . . . . . Cargo Convoy Interrupts . | . . . . . . Stealth | -11 -10 -10 -10 -9 -8 --------- Run | Scr Mat Min Exi Min Mat Distress Signals 5 | . 2 . . . 3 Communications Jammed . | . . . . . . Distress Signals . | . . . . . . Times Spotted 77 | . 17 2 . 5 53 Peak Tracking Total 8 | . 8 2 . 3 6 Tactical Retreats . | . . . . . . Traps | -11 -10 -10 -10 -9 -8 ------- Run | Scr Mat Min Exi Min Mat Traps Triggered 2 | . 1 . . . 1 Indirectly . | . . . . . . Trap Hack Attempts . | . . . . . . Triggered . | . . . . . . Disarmed . | . . . . . . Reprogrammed . | . . . . . . Reused . | . . . . . . Traps Extracted . | . . . . . . Installed . | . . . . . . Triggered . | . . . . . . Machines | -11 -10 -10 -10 -9 -8 ---------- Run | Scr Mat Min Exi Min Mat Machines Disabled 9 | . . 6 . 1 2 Max in Single Turn 6 | . . 6 . 1 1 Garrison Access 1 | . . . . . 1 Machines Sabotaged . | . . . . . . Garrisons Compromised . | . . . . . . Overloaded Fab Kills . | . . . . . . Hacking | -11 -10 -10 -10 -9 -8 --------- Run | Scr Mat Min Exi Min Mat Machines Accessed 16 | . 6 . 1 2 7 Terminals 12 | . 5 . . 1 6 Fabricators . | . . . . . . Repair Stations . | . . . . . . Recycling Units 1 | . 1 . . . . Scanalyzers 1 | . . . . . 1 Garrison Access . | . . . . . . Total Hacks 45 | . 19 . 1 6 19 Successful 29 | . 13 . 1 2 13 Failed 15 | . 5 . . 4 6 Catastrophic 1 | . . . . 1 . Database Lockouts 1 | . 1 . . . . Manual 35 | . 15 . . 5 15 Terminals 38 | . 16 . . 5 17 Fabricators . | . . . . . . Repair Stations . | . . . . . . Recycling Units 3 | . 3 . . . . Scanalyzers 2 | . . . . . 2 Garrison Access . | . . . . . . Terminal Hacks 14 | . 7 . 1 1 5 Record 1 | . . . 1 . . Robot Analysis 3 | . 3 . . . . Open Door 1 | . . . . 1 . Terminal Index 2 | . 1 . . . 1 Alert Level 1 | . . . . . 1 Unreport Threat 1 | . . . . . 1 Locate Traps 5 | . 3 . . . 2 Fabricator Hacks . | . . . . . . Repair Station Hacks . | . . . . . . Recycling Unit Hacks 1 | . 1 . . . . Retrieve Components 1 | . 1 . . . . Scanalyzer 2 | . . . . . 2 Insert Component 1 | . . . . . 1 Analyze 1 | . . . . . 1 Garrison Access Hacks . | . . . . . . Unauthorized Hacks 12 | . 5 . . 1 6 Terminals 11 | . 4 . . 1 6 Track 1 | . . . . 1 . Assimilate 1 | . . . . . 1 Botnet 7 | . 3 . . . 4 Operators 2 | . 1 . . . 1 Fabricators . | . . . . . . Repair Stations . | . . . . . . Recycling Units 1 | . 1 . . . . Tunnel 1 | . 1 . . . . Scanalyzers . | . . . . . . Garrison Access . | . . . . . . Data Cores Recovered . | . . . . . . Used . | . . . . . . Hacking Detections 14 | . 6 . . 1 7 Full Trace Events 2 | . . . . 1 1 Feedback Events . | . . . . . . Feedback Blocked . | . . . . . . Robot Schematics Acquired . | . . . . . . Robots Built . | . . . . . . Authchips . | . . . . . . Time . | . . . . . . Total Robot Build Rating . | . . . . . . Part Schematics Acquired 1 | . . . . . 1 Parts Built . | . . . . . . Authchips . | . . . . . . Time . | . . . . . . Total Part Build Rating . | . . . . . . Parts Repaired . | . . . . . . Time . | . . . . . . Parts Recycled . | . . . . . . Recycled Matter . | . . . . . . Retrieved Matter . | . . . . . . Retrieved Components 9 | . 9 . . . . Parts Scanalyzed 1 | . . . . . 1 Part Schematics Acquired 1 | . . . . . 1 Parts Damaged . | . . . . . . Bothacking | -11 -10 -10 -10 -9 -8 ------------ Run | Scr Mat Min Exi Min Mat Used RIF Installer . | . . . . . . Robots Hacked . | . . . . . . Non-combat . | . . . . . . Combat . | . . . . . . Robot Hacks Applied . | . . . . . . Relay Couplers Released 2 | . . . . . 2 Machine Destruction 2 | . . . . . 2 Fabnet Peak Effective % . | . . . . . . Robots Rewired . | . . . . . . Allies Hacked . | . . . . . . Hacks Repelled . | . . . . . . Allies | -11 -10 -10 -10 -9 -8 -------- Run | Scr Mat Min Exi Min Mat Total Allies 6 | . . 1 . 5 . Largest Group 5 | . . 1 . 5 4 Highest-Rated Group 91 | . . 31 . 91 71 Highest-Rated Ally 31 | . . 31 . 31 31 Total Orders . | . . . . . . Ally Attacks 61 | . . . . . 61 Total Damage 800 | . . . . . 800 Kills 13 | . . . . . 13 Allies Corrupted . | . . . . . . Allies Melted . | . . . . . . Intel | -11 -10 -10 -10 -9 -8 ------- Run | Scr Mat Min Exi Min Mat Robot Analysis Total 3 | . 3 . . . . Derelict Logs Recovered 4 | . . 1 . 3 . Drone Launches . | . . . . . . Drone Recoveries . | . . . . . . Exploration | -11 -10 -10 -10 -9 -8 ------------- Run | Scr Mat Min Exi Min Mat Turns Passed 5442 | 75 1231 745 263 710 2418 Spaces Moved 2629 | 45 662 453 166 589 714 Core 25 | 18 . . . . 7 Treads 1314 | 27 662 453 139 . 33 Legs . | . . . . . . Wheels 1290 | . . . 27 589 674 Hover . | . . . . . . Flight . | . . . . . . Fastest Speed 50 | 50 160 160 115 115 190 Average Speed 178 | 142 160 160 154 115 267 Slowest Speed 3650 | 250 160 160 240 115 3650 Overloaded Moves . | . . . . . . Propulsion Burnouts . | . . . . . . Robots Hopped . | . . . . . . Cave-ins Triggered . | . . . . . . Exploration Rate (%) 68 | 4 96 95 55 98 62 Regions Visited 5 Branch Regions 3 Pre-discovered Areas 2 | . 1 . 1 . . Known Exits Taken . | . . . . . . Unknown Exits Taken 5 | 1 1 1 1 1 . Scrap Searched 2 | . . 1 . 1 . Spaces Dug 3 | . 1 . . . 2 Terrain Destroyed 164 | . 1 33 . 63 67 Melee 3 | . 1 . . . 2 Projectile . | . . . . . . AOE 161 | . . 33 . 63 65 Terrain Rammed . | . . . . . . Walls Destroyed . | . . . . . . Machines Disabled . | . . . . . . Actions | -11 -10 -10 -10 -9 -8 --------- Run | Scr Mat Min Exi Min Mat Total 3076 | 53 753 470 175 614 1011 Wait 126 | . 7 14 . 11 94 Move 2624 | 44 661 452 165 588 714 Hop . | . . . . . . Pick Up 54 | 3 19 . 3 3 26 Fast Attach 17 | 6 3 . . 1 7 Attach 23 | . 4 . 2 . 17 Detach 2 | . 1 . . . 1 Swap 14 | . 4 . 1 2 7 Drop 29 | . 10 . 4 2 13 Fire 173 | . 37 3 . 7 126 Melee 8 | . 4 . . . 4 Ram 2 | . . . . . 2 Kick . | . . . . . . Crush 4 | . 3 1 . . . Escape Stasis . | . . . . . . Rewire . | . . . . . . Trap . | . . . . . . Miscellaneous . | . . . . . . Route ------- -11/Scrapyard -10/Materials (discovered 4 exits: [*Mat x3] / [*Min]) -10/Mines (discovered 3 exits: [*Mat x2] / *Exi) -10/Exiles -9/Mines (discovered 2 exits: *Mat x2) -8/Materials (discovered 3 exits: *Fac x2 / Sto) History --------- Turn | Location | Event 27 | -11/Scrapyard | Discovered new exit (range 15) 76 | -11/Scrapyard | Entered Materials 187 | -10/Materials | Destroyed 7 combat bots 316 | -10/Materials | Build established: Mutant 405 | -10/Materials | Discovered new exit (range 12) 503 | -10/Materials | Discovered new exit (range 15) 731 | -10/Materials | Central database locked down 731 | -10/Materials | Discovered new exit (range 16) 1205 | -10/Materials | Discovered new exit (range 16) 1307 | -10/Materials | Entered Mines 1310 | -10/Mines | Received a Mining Laser from a helpful Derelict 1419 | -10/Mines | Discovered new exit (range 7) 1771 | -10/Mines | Learned Materials emergency access door positions 2025 | -10/Mines | Discovered new exit (range 6) 2046 | -10/Mines | Deemed a non-threat by the Exiles lab entrance 2046 | -10/Mines | Discovered new exit (range 5) 2052 | -10/Mines | Entered Exiles 2096 | -10/Exiles | Met 8R-AWN 2116 | -10/Exiles | Met EX-HEX 2190 | -10/Exiles | Met EX-DEC 2220 | -10/Exiles | Learned location of Zion (-6) 2306 | -10/Exiles | Discovered new exit (range 10) 2315 | -10/Exiles | Entered Mines 2331 | -9/Mines | Discovered new exit (range 15) 2405 | -9/Mines | Met a Derelict bent on vengeance 2657 | -9/Mines | Learned 2 Materials zone layouts 2708 | -9/Mines | Learned Materials security intel 2766 | -9/Mines | Discovered new exit (range 9) 2806 | -9/Mines | Met a Derelict who couldn't figure out how to use a Trap Extractor 2872 | -9/Mines | Assisted by bots powering up and referring to "LRC-V3" 3025 | -9/Mines | Entered Materials 3025 | -8/Materials | Accompanied by 4 allies 3025 | -8/Materials | Evolved 4 slots: Utility x3, Weapon x1 3026 | -8/Materials | Identified exit to Storage 3027 | -8/Materials | Identified exit to Factory 3030 | -8/Materials | Led the pair of lost Derelicts to an unsafe place 3351 | -8/Materials | Build established: Hauler-Mutant 3895 | -8/Materials | Build established: Hauler-Tank 4060 | -8/Materials | Discovered exit to Factory (range 16) 4092 | -8/Materials | Garrison activated, responded to threat 4115 | -8/Materials | Lost 3 parts (1n1u1w) 4296 | -8/Materials | Core integrity fell below 50% 4338 | -8/Materials | Lost 6 parts (1p1n3u1w) 4580 | -8/Materials | Build established: Hauler-Mutant 5375 | -8/Materials | Core integrity fell below 20% 5443 | -8/Materials | Destroyed by G-47 Trooper with Particle Gun Last Messages --------------- 05365_ Power failure, Imp. Ion Engine shutdown. 05365_ Overheating: System interference. 05365_ Adv. Beam Rifle temporarily disabled. 05370_ Overheating: System interference. 05370_ Beam Rifle temporarily disabled. 05371_ Overheating: Core damaged (-88). 05375_ Overheating: Core damaged (-110). 05376_ Wheel broken. 05376_ Overheating: Short circuit. 05378_ Overheating: Hacking Suite damaged (-5). 05378_ Destroyed Aluminum Leg. 05380_ Power failure, Imp. Ion Engine shutdown. 05380_ G-47 Trooper destroyed. 05381_ Wheel broken. 05381_ Overheating: Short circuit. 05382_ Overheating: Adv. Beam Rifle damaged (-52). 05382_ Acquired 27 matter. 05383_ Overheating: Energy bleed (-13). 05391_ Overheating: Energy bleed (-24). 05435_ Broken Wheel destroyed. Map ----- +----------------------------------------------------+ | ?????????????????????# #??# #???# """ T" /% | | ?????????????????????# #??# #???# """ "" # | | ?????????????????????# #??# #???# #= | | ?????????????????????# #??# *#???#####/#####% | | ?????????????????????# #??# %%######## | | ?????????????????????# #??# ===!=%==!* | | ?????????????######### #### %%######## | | #????????????# ^ =#??????# #### | | #????????????# ^ [########??????# #??? | | #????????????#^ ^ [[! ###???????????#==!!==#??? | | +????????????#^ [[! ""#???????????#==!!==#??? | | #????????????#^ ^[! T"#???????????########??? | | #????????????# ^^ ""#?????????????????????? | | #????????????# ^ #########???????????????? | | ?????????????# """""= #?! ????????????????? | | ?????????##### ^ ^"""" !*#? """ ???????????????? | | ??????? """"" !# """ ???????????????? | | ??????? !!!# """ #??????????????? | | ??????? = + #??????????????? | | ??????? ! ! # """ #??????#######?? | | ???????? #### # """ ???????# *=?? | | ???????? ????# #? """ ???????# *= ? | | ????????? ??????# #? ????????# ? | | ????????? ?????####o############???????# ! | | ?????????????????# g T #?????????????# | | ?????????????????# g @ #?????????????# ! | | ?????????????????# ! %%#?????????????# | | ?????????????????#! %=#?????????????# * ] | | ?????????????????#########+#?????????????######### | | ?????????????????????????? ?????????????# | | ????????>????????????????? +????????????# ! | | ?????????????????????????? #????????????# """ | | ?????????????????????????? #????????????# """ | | o????????????????????????? #????????????# """ "" | | ??????????????????????????? #????????????# """ T" | | ??????????????????????????? #???+????????# """ "" | | ??????????????????????????? #????????????# | | ??????????????????????????? #????????????###+##### | | ??????????????????????????? #??????????????# #???? | | ????????????????????????????+????????????### ##??? | | ?????????????????????????????????????????# #### | | ?????????????????????????????????????????# | | ?????????????????????????????????????????# | | ?????????????????????????????????????????# #### | | ???????????????????????????????????????####+###### | | ???????????????????????????????????????# # | | ???????????????????????????????????????#""""" ! + | | ???????????????????????????????????????#""""" # | | ???????????????????????????????????????#""""" # | | ???????????????????????????????????????#""""" # | +----------------------------------------------------+ Best States ------------- Heat Dissipation 55 Energy Generation 14 Energy Capacity 280 Matter Stores 300 Matter Capacity 300 Sight Range 16 Robot Scan Range 15 Terrain Scan Density 10 Armor Coverage 225 Resistance: EM 20 Weapon Shielding 33 Weapon Cycling 15 Evasion (%) 50 Targeting Accuracy 5 Recoil Reduction 2 Offensive Hacking 10 Item Schematics ----------------- Humpback | -8/Materials | Scanalyzed Robot Schematics ------------------ None Fabricated ------------ Nothing Alien Tech Used ----------------- None Achievements -------------- None Challenges ------------ None Game ------ Seed SalvageIntegrityHumpback Manual? 0 Play Time 00:29:08 Cumulative 171.8 hours Start 2022.02.26 @ 14:36:53 End 2022.02.26 @ 14:56:01 Sessions 1 Manual Loads 0 Difficulty Rogue Special Mode None Game No. 284 Rogue 267 Adventurer 4 Explorer 13 Win Type - Total 8 Types 6/0/0/2/0/0/0/0/0 Lore% 65 Gallery% 82 Achievement% 68 Wizard Run 0 Options --------- ASCII 0 Keyboard 1 Movement Numpad Keybinds 0 Fullscreen 1 Font 18/SmallcapsGlow Map View 76x50 Tactical HUD 1 Map Filters NONE Filters NONE Steam 1 RUN: 489c4d0b-74a9-482a-afed-2e1f4069fc1a